[Event "Commonwealth Open 2019"]
[Site "Delhi"]
[Date "2019.07.04"]
[Round "6.14"]
[White "Divya, Deshmukh"]
[Black "Kumar, Gaurav"]
[Result "1-0"]
[ECO "C58"]
[WhiteElo "2414"]
[BlackElo "2110"]
[Annotator "NA"]
[PlyCount "87"]
[EventDate "2019.06.30"]
[EventType "swiss"]
[EventCountry "IND"]
[SourceTitle "playchess.com"]
[Source "ChessBase"]
[SourceQuality "1"]
[TimeControl "5400+30"]

1. e4 {[%emt 0:00:00]} e5 {[%emt 0:00:00]} 2. Nf3 {[%emt 0:00:00]} Nc6 {[%emt 0:00:00]} 3. Bc4 {[%emt 0:00:00]} Nf6 {[%emt 0:00:00]} 4. Ng5 {[%emt 0:00:00]} d5 {[%emt 0:00:00]} 5. exd5 {[%emt 0:00:00]} Na5 {[%emt 0:00:00]} 6. Bb5+ {[%emt 0:00:00]} c6 {[%emt 0:00:07]} 7. dxc6 {[%emt 0:00:00]} bxc6 {[%emt 0:00:02]} 8. Qf3 {[%emt 0:00:00]} Be7 {[%emt 0:00:45]} 9. O-O {[%emt 0:01:08]} Bg4 {[%emt 0:02:56]} 10. Bxc6+ {[%emt 0:07:50]} Kf8 {[%emt 0:00:08]} 11. Bxa8 {[%emt 0:00:21]} Bxf3 {[%emt 0:00:05]} 12. Bxf3 {[%emt 0:00:02]} Nd5 {[%emt 0:05:33]} 13. Bxd5 {[%emt 0:02:09]} Qxd5 {[%emt 0:00:40]} 14. d3 {[%emt 0:00:09]} Nc6 {[%emt 0:01:34]} 15. Nf3 {[%emt 0:06:12]} Nb4 {[%emt 0:08:17]} 16. Na3 {[%emt 0:00:34]} f6 {[%emt 0:01:42]} 17. Be3 {[%emt 0:02:05]} a6 {[%emt 0:15:39]} 18. d4 {[%emt 0:10:00]} exd4 $14 {[%emt 0:07:16]} 19. Nxd4 {[%emt 0:01:20]} Kf7 {[%emt 0:00:08]} 20. b3 {[%emt 0:04:03]} Nc6 {[%emt 0:02:51]} 21. c4 {[%emt 0:00:17]} Qe4 {[%emt 0:00:16]} 22. Nac2 {[%emt 0:01:29]} Nxd4 {[%emt 0:14:40]} 23. Nxd4 {[%emt 0:00:05]} Bc5 {[%emt 0:15:25]} 24. Nc2 {[%emt 0:01:12]} Bxe3 {[%emt 0:00:06]} 25. Nxe3 {[%emt 0:00:03]} f5 {[%emt 0:00:22]} 26. c5 {[%emt 0:10:33]} Rd8 {[%emt 0:09:55]} 27. Nc4 {[%emt 0:00:29]} Kf8 {[%emt 0:03:51]} 28. Nd6 {[%emt 0:00:27]} Qc6 {[%emt 0:00:07]} 29. Rac1 {[%emt 0:00:40]} f4 {[%emt 0:00:51]} 30. Rc4 {[%emt 0:00:24]} f3 {[%emt 0:00:51]} 31. Rf4+ {[%emt 0:00:28]} Kg8 {[%emt 0:00:09]} 32. Rxf3 {[%emt 0:00:04]} Rf8 {[%emt 0:02:44]} 33. Rc3 {[%emt 0:03:05]} Qd5 {[%emt 0:01:06]} 34. Rc4 {[%emt 0:05:09]} h6 {[%emt 0:00:40]} 35. b4 {[%emt 0:01:33]} Kh7 {[%emt 0:00:30]} 36. h3 {[%emt 0:00:28]} Rf6 {[%emt 0:00:31]} 37. Rfc1 {[%emt 0:00:44]} Rg6 {[%emt 0:00:18]} 38. g3 {[%emt 0:00:16]} Qc6 {[%emt 0:00:10]} 39. a4 {[%emt 0:00:43]} Qxa4 {[%emt 0:01:51]} 40. b5 {[%emt 0:02:19]} Qb3 {[%emt 0:03:50]} 41. R4c3 {[%emt 0:00:05]} Qd5 {[%emt 0:00:32]} 42. b6 {[%emt 0:02:13]} Qd4 {[%emt 0:03:00]} 43. b7 {[%emt 0:06:47]} Qb4 {[%emt 0:00:01]} 44. c6 {[%emt 0:01:37]} 1-0

[Event "Commonwealth Open 2019"]
[Site "Delhi"]
[Date "2019.07.04"]
[Round "6.15"]
[White "Sa, Kannan"]
[Black "Thipsay, Praveen M"]
[Result "1/2-1/2"]
[ECO "B08"]
[WhiteElo "1947"]
[BlackElo "2405"]
[Annotator "NA"]
[PlyCount "112"]
[EventDate "2019.06.30"]
[EventType "swiss"]
[EventCountry "IND"]
[SourceTitle "playchess.com"]
[Source "ChessBase"]
[SourceQuality "1"]
[TimeControl "5400+30"]

1. d4 {[%emt 0:10:56]} Nf6 {[%emt 0:00:00]} 2. Nf3 {[%emt 0:00:20]} g6 {[%emt 0:00:08]} 3. Nc3 {[%emt 0:00:12]} Bg7 {[%emt 0:00:46]} 4. e4 {[%emt 0:00:26]} d6 {[%emt 0:00:07]} 5. Bf4 {[%emt 0:00:06]} O-O {[%emt 0:01:29]} 6. Qd2 {[%emt 0:00:09]} c6 {[%emt 0:02:46]} 7. Bh6 {[%emt 0:05:43]} e5 {[%emt 0:09:17]} 8. Bxg7 {[%emt 0:11:53]} Kxg7 {[%emt 0:02:27]} 9. dxe5 {[%emt 0:00:08]} dxe5 {[%emt 0:00:06]} 10. Qxd8 {[%emt 0:00:20]} Rxd8 {[%emt 0:00:08]} 11. Nxe5 $11 {[%emt 0:00:30]} Re8 {[%emt 0:00:06]} 12. f4 {[%emt 0:00:37]} Nbd7 {[%emt 0:02:18]} 13. Nxd7 {[%emt 0:11:27]} Nxe4 {[%emt 0:00:09]} 14. Nxe4 {[%emt 0:06:29]} Rxe4+ {[%emt 0:00:08]} 15. Kf2 {[%emt 0:00:15]} Bxd7 {[%emt 0:00:46]} 16. g3 {[%emt 0:00:17]} Bg4 {[%emt 0:06:14]} 17. Bd3 {[%emt 0:02:34]} Rd4 {[%emt 0:00:17]} 18. Rhe1 {[%emt 0:03:45]} c5 {[%emt 0:08:08]} 19. b3 {[%emt 0:02:34]} a6 {[%emt 0:08:47]} 20. Re5 {[%emt 0:10:25]} Rc8 {[%emt 0:01:34]} 21. Rae1 {[%emt 0:13:23]} b5 {[%emt 0:03:02]} 22. R1e4 {[%emt 0:04:47]} Rd6 {[%emt 0:11:02]} 23. a4 {[%emt 0:02:09]} Bf5 {[%emt 0:06:09]} 24. Re3 {[%emt 0:00:25]} Bd7 {[%emt 0:00:12]} 25. axb5 {[%emt 0:00:49]} axb5 {[%emt 0:00:05]} 26. Bf1 {[%emt 0:00:32]} Rd2+ {[%emt 0:07:59]} 27. Re2 {[%emt 0:00:53]} Rd4 {[%emt 0:03:40]} 28. R2e3 {[%emt 0:02:57]} Bg4 {[%emt 0:21:27]} 29. h3 {[%emt 0:05:38]} Bd7 {[%emt 0:00:26]} 30. h4 {[%emt 0:00:54]} Bg4 {[%emt 0:00:15]} 31. Be2 {[%emt 0:00:41]} Bxe2 {[%emt 0:01:48]} 32. Rxe2 {[%emt 0:00:40]} Kf8 {[%emt 0:00:56]} 33. h5 {[%emt 0:00:17]} Kg7 {[%emt 0:00:15]} 34. Kf3 {[%emt 0:00:21]} Rd1 {[%emt 0:00:59]} 35. hxg6 {[%emt 0:01:59]} hxg6 {[%emt 0:00:07]} 36. Re7 {[%emt 0:00:27]} c4 {[%emt 0:00:52]} 37. bxc4 {[%emt 0:00:27]} Rxc4 {[%emt 0:00:11]} 38. Rb7 {[%emt 0:00:16]} Rd5 {[%emt 0:00:29]} 39. Ree7 {[%emt 0:01:01]} Rc3+ {[%emt 0:00:35]} 40. Kg4 {[%emt 0:00:12]} Rf5 {[%emt 0:00:03]} 41. Re5 {[%emt 0:00:47]} Rxe5 {[%emt 0:02:41]} 42. fxe5 {[%emt 0:00:02]} Rxc2 {[%emt 0:00:15]} 43. e6 {[%emt 0:00:20]} Rf2 {[%emt 0:00:04]} 44. exf7 {[%emt 0:00:45]} Rf5 {[%emt 0:00:09]} 45. Kh3 {[%emt 0:00:30]} Rc5 {[%emt 0:00:25]} 46. Kg4 {[%emt 0:00:26]} Kf8 {[%emt 0:00:17]} 47. Kf4 {[%emt 0:00:21]} Rd5 {[%emt 0:00:19]} 48. Kg4 {[%emt 0:00:10]} Rh5 {[%emt 0:00:36]} 49. Kf4 {[%emt 0:00:14]} Rf5+ {[%emt 0:00:09]} 50. Kg4 {[%emt 0:00:15]} Kg7 {[%emt 0:00:04]} 51. Kh4 Rc5 {[%emt 0:00:58]} 52. Kg4 {[%emt 0:00:21]} Rc4+ {[%emt 0:00:21]} 53. Kg5 {[%emt 0:00:37]} Rc5+ {[%emt 0:01:29]} 54. Kg4 {[%emt 0:00:07]} Rh5 {[%emt 0:00:15]} 55. Kf4 {[%emt 0:00:08]} Rf5+ {[%emt 0:00:04]} 56. Kg4 {[%emt 0:00:05]} Rh5 {[%emt 0:00:17]} 1/2-1/2

[Event "Commonwealth Open 2019"]
[Site "Delhi"]
[Date "2019.07.04"]
[Round "6.16"]
[White "Tania, Sachdev"]
[Black "Bommini, Mounika Akshaya"]
[Result "1-0"]
[ECO "D17"]
[WhiteElo "2401"]
[BlackElo "2063"]
[Annotator "NA"]
[PlyCount "121"]
[EventDate "2019.06.30"]
[EventType "swiss"]
[EventCountry "IND"]
[SourceTitle "playchess.com"]
[Source "ChessBase"]
[SourceQuality "1"]
[TimeControl "5400+30"]

1. d4 {[%emt 0:06:02]} d5 {[%emt 0:00:00]} 2. c4 {[%emt 0:00:04]} c6 {[%emt 0:00:00]} 3. Nf3 {[%emt 0:00:08]} Nf6 {[%emt 0:00:14]} 4. Nc3 {[%emt 0:00:05]} dxc4 {[%emt 0:00:05]} 5. a4 {[%emt 0:00:02]} Bf5 {[%emt 0:00:16]} 6. Ne5 {[%emt 0:00:18]} Nbd7 {[%emt 0:00:09]} 7. Nxc4 {[%emt 0:00:07]} Qc7 {[%emt 0:00:10]} 8. g3 {[%emt 0:00:13]} e5 {[%emt 0:00:20]} 9. dxe5 {[%emt 0:00:07]} Nxe5 {[%emt 0:00:07]} 10. Bf4 {[%emt 0:00:09]} Nfd7 {[%emt 0:00:17]} 11. Bg2 {[%emt 0:00:22]} f6 {[%emt 0:00:20]} 12. O-O {[%emt 0:01:25]} g5 {[%emt 0:00:13]} 13. Bxe5 {[%emt 0:08:12]} Nxe5 {[%emt 0:00:14]} 14. Ne3 {[%emt 0:04:00]} Be6 {[%emt 0:00:42]} 15. a5 {[%emt 0:03:58]} a6 {[%emt 0:04:49]} 16. Qc2 {[%emt 0:05:20]} Bc5 {[%emt 0:12:26]} 17. Ne4 {[%emt 0:04:10]} Be7 {[%emt 0:01:35]} 18. Nc5 {[%emt 0:10:13]} Bxc5 {[%emt 0:09:01]} 19. Qxc5 {[%emt 0:00:03]} O-O-O {[%emt 0:01:46]} 20. Qc2 {[%emt 0:09:17]} Rd4 {[%emt 0:06:44]} 21. Be4 {[%emt 0:08:23]} Nc4 {[%emt 0:18:38]} 22. Bf5 {[%emt 0:12:59]} Qe5 {[%emt 0:00:50]} 23. Qc3 {[%emt 0:01:55]} Rhd8 {[%emt 0:06:58]} 24. Bxh7 {[%emt 0:02:25]} Nd2 {[%emt 0:06:07]} 25. Rfd1 {[%emt 0:01:42]} g4 {[%emt 0:17:23]} 26. Bd3 {[%emt 0:06:03]} Ne4 {[%emt 0:04:10]} 27. Bxe4 {[%emt 0:08:35]} Qxe4 {[%emt 0:00:15]} 28. Rxd4 {[%emt 0:00:19]} Qxd4 {[%emt 0:04:22]} 29. Rd1 {[%emt 0:03:59]} Qxc3 {[%emt 0:00:55]} 30. Rxd8+ {[%emt 0:00:05]} Kxd8 {[%emt 0:00:03]} 31. bxc3 {[%emt 0:00:02]} Kc7 {[%emt 0:01:25]} 32. f3 {[%emt 0:00:04]} gxf3 {[%emt 0:01:21]} 33. exf3 {[%emt 0:00:04]} b6 {[%emt 0:00:04]} 34. axb6+ {[%emt 0:00:27]} Kxb6 {[%emt 0:00:01]} 35. Kf2 {[%emt 0:03:02]} Kb5 {[%emt 0:00:23]} 36. Ke2 {[%emt 0:00:34]} Ka4 {[%emt 0:00:11]} 37. h4 {[%emt 0:01:39]} Kb3 {[%emt 0:00:13]} 38. h5 {[%emt 0:00:54]} a5 {[%emt 0:00:44]} 39. h6 {[%emt 0:00:11]} Bg8 {[%emt 0:00:02]} 40. Ng4 {[%emt 0:00:34]} a4 {[%emt 0:02:06]} 41. Nxf6 {[%emt 0:00:02]} Bc4+ {[%emt 0:00:09]} 42. Ke3 {[%emt 0:00:57]} a3 {[%emt 0:00:16]} 43. h7 {[%emt 0:00:02]} a2 {[%emt 0:00:06]} 44. h8=Q {[%emt 0:00:12]} a1=Q {[%emt 0:00:04]} 45. Ne4 {[%emt 0:00:55]} Qc1+ {[%emt 0:01:13]} 46. Kd4 {[%emt 0:01:11]} Qd1+ {[%emt 0:01:49]} 47. Ke5 {[%emt 0:00:08]} Kc2 {[%emt 0:01:12]} 48. Qh2+ {[%emt 0:01:13]} Kc1 {[%emt 0:00:17]} 49. Qh6+ {[%emt 0:00:38]} Kc2 {[%emt 0:00:09]} 50. Qxc6 {[%emt 0:00:13]} Bb3 {[%emt 0:01:18]} 51. f4 {[%emt 0:00:21]} Qh5+ {[%emt 0:01:06]} 52. f5 {[%emt 0:00:06]} Kb2 {[%emt 0:00:10]} 53. Qb6 {[%emt 0:00:38]} Ka1 {[%emt 0:01:16]} 54. Kf4 {[%emt 0:01:30]} Ba2 {[%emt 0:00:27]} 55. Qg1+ {[%emt 0:00:32]} Bb1 {[%emt 0:00:11]} 56. Qa7+ {[%emt 0:00:32]} Kb2 {[%emt 0:00:16]} 57. Qb6+ {[%emt 0:00:07]} Ka1 {[%emt 0:00:08]} 58. Qa5+ {[%emt 0:00:06]} Ba2 {[%emt 0:00:19]} 59. c4 {[%emt 0:00:31]} Qh8 {[%emt 0:00:00]} 60. Qd5 Qb8+ {[%emt 0:00:12]} 61. Qe5+ {[%emt 0:00:27]} 1-0

[Event "Commonwealth Open 2019"]
[Site "Delhi"]
[Date "2019.07.04"]
[Round "6.17"]
[White "Rathnakaran, K.."]
[Black "Arya, Bhakta"]
[Result "1-0"]
[ECO "B50"]
[WhiteElo "2338"]
[BlackElo "2050"]
[Annotator "RC"]
[PlyCount "77"]
[EventDate "2019.06.30"]
[EventType "swiss"]
[EventCountry "IND"]
[SourceTitle "playchess.com"]
[Source "ChessBase"]
[SourceQuality "1"]
[TimeControl "5400+30"]

1. e4 {[%emt 0:00:00]} c5 {[%emt 0:00:00]} 2. Nf3 {[%emt 0:00:00]} d6 {[%emt 0:00:00]} 3. c3 {[%emt 0:00:00]} Nf6 {[%emt 0:00:12]} 4. Be2 {[%emt 0:00:00]} Bd7 {[%emt 0:00:17]} 5. d3 {[%emt 0:00:01]} g6 {[%emt 0:03:36]} 6. Nbd2 {[%emt 0:00:13]} Bg7 {[%emt 0:00:40]} 7. Nf1 {[%emt 0:00:06]} Nc6 {[%emt 0:00:23]} 8. Ng3 {[%emt 0:00:09]} O-O {[%emt 0:01:37]} 9. h4 {[%emt 0:00:04]} h5 {[%emt 0:01:06]} 10. Bg5 {[%emt 0:00:06]} Qb6 {[%emt 0:01:08]} 11. Qd2 {[%emt 0:00:08]} e5 {[%emt 0:08:01]} 12. Nh2 {[%emt 0:00:58]} Be6 {[%emt 0:03:30]} 13. Bxf6 {[%emt 0:02:27]} Bxf6 {[%emt 0:00:18]} 14. Bxh5 {[%emt 0:00:06]} gxh5 {[%emt 0:20:19]} 15. Nxh5 {[%emt 0:02:49]} Bh8 {[%emt 0:03:39]} 16. Qh6 {[%emt 0:00:12]} Qc7 {[%emt 0:25:38]} 17. Nf3 {[%emt 0:00:32]} f6 {[%emt 0:01:40]} 18. Ng5 {[%emt 0:02:28]} Rfe8 {[%emt 0:18:50]} 19. Qg6+ {[%emt 0:05:32]} Kf8 {[%emt 0:00:27]} 20. Nxf6 {[%emt 0:01:20]} Qg7 {[%emt 0:03:40]} 21. Qxg7+ {[%emt 0:02:47]} Bxg7 {[%emt 0:00:11]} 22. Nxe8 {[%emt 0:00:05]} Rxe8 {[%emt 0:00:06]} 23. Nxe6+ {[%emt 0:00:06]} Rxe6 {[%emt 0:00:06]} 24. g4 {[%emt 0:00:07]} Rg6 {[%emt 0:00:42]} 25. g5 {[%emt 0:02:48]} Nd8 {[%emt 0:00:22]} 26. Ke2 {[%emt 0:00:08]} Ne6 {[%emt 0:00:22]} 27. Kf3 {[%emt 0:00:07]} Kf7 {[%emt 0:00:44]} 28. Kg4 {[%emt 0:01:04]} Bf8 {[%emt 0:00:22]} 29. b4 {[%emt 0:02:39]} Be7 {[%emt 0:00:56]} 30. bxc5 {[%emt 0:00:24]} Nxc5 {[%emt 0:00:13]} 31. Rh3 {[%emt 0:00:21]} Ne6 {[%emt 0:00:36]} 32. Rb1 {[%emt 0:00:44]} b6 {[%emt 0:00:08]} 33. d4 {[%emt 0:00:06]} Rg8 {[%emt 0:03:49]} 34. Rf3+ {[%emt 0:04:14]} Nf4 {[%emt 0:00:37]} 35. Rh1 {[%emt 0:00:35]} Kg6 {[%emt 0:00:38]} 36. Rd1 {[%emt 0:01:44]} a5 {[%emt 0:02:04]} 37. dxe5 {[%emt 0:00:09]} dxe5 {[%emt 0:00:04]} 38. Rd7 {[%emt 0:00:17]} Bc5 {[%emt 0:00:23]} 39. Rxf4 {[%emt 0:00:08]} 1-0

[Event "Commonwealth Open 2019"]
[Site "Delhi"]
[Date "2019.07.04"]
[Round "6.19"]
[White "Srihari L R"]
[Black "Sanjeet, Manohar"]
[Result "1/2-1/2"]
[ECO "A05"]
[WhiteElo "2200"]
[BlackElo "1905"]
[Annotator "NA"]
[PlyCount "132"]
[EventDate "2019.06.30"]
[EventType "swiss"]
[EventCountry "IND"]
[SourceTitle "playchess.com"]
[Source "ChessBase"]
[SourceQuality "1"]
[TimeControl "5400+30"]

1. Nf3 {[%emt 0:00:20]} Nf6 2. c4 {[%emt 0:00:11]} g6 {[%emt 0:00:03]} 3. b4 {[%emt 0:00:07]} Bg7 {[%emt 0:00:08]} 4. Bb2 {[%emt 0:00:09]} O-O {[%emt 0:00:59]} 5. g3 {[%emt 0:00:12]} d5 {[%emt 0:04:12]} 6. cxd5 {[%emt 0:01:11]} Qxd5 {[%emt 0:03:56]} 7. Nc3 {[%emt 0:06:42]} Qh5 {[%emt 0:00:51]} 8. h3 {[%emt 0:02:52]} a5 {[%emt 0:09:38]} 9. b5 {[%emt 0:11:27]} Ne4 {[%emt 0:03:32]} 10. a4 {[%emt 0:08:46]} Nxc3 {[%emt 0:04:25]} 11. Bxc3 {[%emt 0:01:14]} Bxc3 {[%emt 0:00:38]} 12. dxc3 c6 {[%emt 0:04:35]} 13. Qd4 {[%emt 0:07:32]} Be6 {[%emt 0:19:13]} 14. Rb1 {[%emt 0:19:25]} Qf5 {[%emt 0:07:06]} 15. Rb2 {[%emt 0:05:01]} cxb5 {[%emt 0:03:15]} 16. Bg2 {[%emt 0:15:57]} Nc6 {[%emt 0:06:38]} 17. Qh4 {[%emt 0:02:08]} b4 {[%emt 0:01:06]} 18. Ng5 {[%emt 0:02:04]} h5 {[%emt 0:00:31]} 19. O-O {[%emt 0:04:28]} bxc3 {[%emt 0:15:36]} 20. Rb5 {[%emt 0:02:45]} Qf6 {[%emt 0:01:19]} 21. Bxc6 {[%emt 0:02:16]} bxc6 {[%emt 0:00:15]} 22. Rc5 {[%emt 0:00:04]} Rab8 {[%emt 0:02:23]} 23. Rc1 {[%emt 0:01:44]} Rb4 {[%emt 0:01:18]} 24. e4 {[%emt 0:00:23]} Rb2 {[%emt 0:03:20]} 25. Qf4 {[%emt 0:01:20]} Qxf4 {[%emt 0:02:29]} 26. gxf4 {[%emt 0:00:02]} Rd8 {[%emt 0:00:38]} 27. Nxe6 {[%emt 0:01:35]} fxe6 {[%emt 0:00:04]} 28. R1xc3 {[%emt 0:00:03]} Rd1+ {[%emt 0:03:02]} 29. Kg2 {[%emt 0:00:06]} Rdd2 {[%emt 0:00:08]} 30. Rf3 {[%emt 0:00:24]} Rdc2 {[%emt 0:01:14]} 31. Rxa5 {[%emt 0:00:48]} c5 {[%emt 0:00:20]} 32. Ra6 {[%emt 0:00:54]} Kf7 {[%emt 0:00:25]} 33. f5 {[%emt 0:00:09]} exf5 {[%emt 0:00:57]} 34. exf5 {[%emt 0:00:05]} gxf5 {[%emt 0:01:07]} 35. Rxf5+ {[%emt 0:00:01]} Ke8 {[%emt 0:00:07]} 36. Rc6 {[%emt 0:03:19]} c4 {[%emt 0:01:07]} 37. Rf4 {[%emt 0:01:31]} c3 {[%emt 0:00:32]} 38. Rf3 {[%emt 0:00:34]} Ra2 {[%emt 0:00:47]} 39. Rc4 {[%emt 0:00:51]} Ra3 {[%emt 0:00:40]} 40. Kg3 {[%emt 0:00:18]} Rca2 {[%emt 0:00:27]} 41. Rc8+ {[%emt 0:00:25]} Kd7 {[%emt 0:00:06]} 42. Rcxc3 {[%emt 0:00:18]} Rxc3 {[%emt 0:00:10]} 43. Rxc3 {[%emt 0:00:10]} Rxa4 {[%emt 0:00:04]} 44. Rc5 {[%emt 0:00:09]} h4+ {[%emt 0:00:24]} 45. Kf3 {[%emt 0:00:06]} Ke6 {[%emt 0:00:27]} 46. Rg5 {[%emt 0:00:08]} Ra8 {[%emt 0:02:13]} 47. Kg4 {[%emt 0:00:20]} Ra4+ {[%emt 0:00:16]} 48. Kf3 {[%emt 0:00:14]} Ra8 {[%emt 0:00:27]} 49. Kg4 {[%emt 0:00:46]} Ra4+ {[%emt 0:00:15]} 50. f4 {[%emt 0:00:04]} Kf6 {[%emt 0:00:19]} 51. Rf5+ {[%emt 0:00:03]} Kg6 {[%emt 0:00:10]} 52. Re5 {[%emt 0:00:51]} Kf6 {[%emt 0:00:17]} 53. Rh5 {[%emt 0:00:04]} Kg6 {[%emt 0:00:13]} 54. Rb5 {[%emt 0:00:10]} e6 {[%emt 0:01:31]} 55. Re5 {[%emt 0:00:44]} Kf6 {[%emt 0:00:10]} 56. Kf3 {[%emt 0:00:16]} Ra3+ {[%emt 0:00:20]} 57. Kg4 {[%emt 0:00:04]} Ra4 {[%emt 0:00:03]} 58. Rg5 {[%emt 0:00:21]} Rb4 {[%emt 0:00:12]} 59. Rh5 {[%emt 0:00:06]} Kg6 {[%emt 0:00:18]} 60. Ra5 {[%emt 0:00:04]} Rc4 {[%emt 0:00:56]} 61. Ra6 {[%emt 0:00:12]} Kf6 {[%emt 0:00:06]} 62. Ra5 {[%emt 0:00:27]} Kg6 {[%emt 0:00:24]} 63. Re5 {[%emt 0:00:04]} Kf6 {[%emt 0:00:04]} 64. Re1 {[%emt 0:00:04]} Ra4 {[%emt 0:00:24]} 65. Re5 {[%emt 0:00:36]} Rb4 {[%emt 0:00:19]} 66. Rh5 {[%emt 0:00:05]} Kg6 1/2-1/2

[Event "Commonwealth Open 2019"]
[Site "Delhi"]
[Date "2019.07.04"]
[Round "6.21"]
[White "Mahindrakar Indrajeet"]
[Black "Mahalakshmi, M."]
[Result "0-1"]
[ECO "B10"]
[WhiteElo "2092"]
[BlackElo "2245"]
[Annotator "NA"]
[PlyCount "118"]
[EventDate "2019.06.30"]
[EventType "swiss"]
[EventCountry "IND"]
[SourceTitle "playchess.com"]
[Source "ChessBase"]
[SourceQuality "1"]
[TimeControl "5400+30"]

1. e4 {[%emt 0:00:00]} c6 {[%emt 0:00:00]} 2. c4 {[%emt 0:00:58]} d5 {[%emt 0:00:00]} 3. exd5 {[%emt 0:00:08]} cxd5 {[%emt 0:00:00]} 4. cxd5 {[%emt 0:00:00]} Nf6 {[%emt 0:00:00]} 5. Qa4+ {[%emt 0:00:20]} Nbd7 {[%emt 0:00:07]} 6. Nc3 {[%emt 0:00:13]} g6 {[%emt 0:00:05]} 7. Nf3 {[%emt 0:00:10]} Bg7 {[%emt 0:00:06]} 8. Bc4 {[%emt 0:00:09]} a6 {[%emt 0:00:05]} 9. d3 {[%emt 0:01:55]} O-O {[%emt 0:00:16]} 10. Qa3 {[%emt 0:00:09]} b6 {[%emt 0:00:13]} 11. O-O {[%emt 0:01:18]} Bb7 {[%emt 0:00:03]} 12. Re1 {[%emt 0:00:48]} Re8 {[%emt 0:00:03]} 13. Ng5 {[%emt 0:02:33]} h6 {[%emt 0:01:05]} 14. Nge4 {[%emt 0:00:31]} Rc8 {[%emt 0:01:45]} 15. Bb3 {[%emt 0:02:45]} Ne5 {[%emt 0:07:12]} 16. Rd1 {[%emt 0:38:48]} Nxd5 {[%emt 0:11:43]} 17. Nxd5 {[%emt 0:03:23]} Bxd5 {[%emt 0:06:18]} 18. Bxd5 {[%emt 0:01:07]} Qxd5 {[%emt 0:00:08]} 19. Qxa6 {[%emt 0:00:40]} Red8 {[%emt 0:06:16]} 20. Nc3 {[%emt 0:02:29]} Qd6 {[%emt 0:07:56]} 21. h3 {[%emt 0:04:56]} Qb4 {[%emt 0:09:03]} 22. Be3 {[%emt 0:19:43]} Qxb2 {[%emt 0:01:46]} 23. Nd5 {[%emt 0:01:25]} Nc6 {[%emt 0:03:31]} 24. Rab1 {[%emt 0:00:57]} Qe5 {[%emt 0:02:12]} 25. Nxb6 {[%emt 0:00:52]} Rb8 {[%emt 0:00:43]} 26. Qa4 {[%emt 0:12:06]} Qe6 {[%emt 0:05:31]} 27. d4 {[%emt 0:01:45]} Qd6 {[%emt 0:02:21]} 28. d5 {[%emt 0:00:25]} Ne5 {[%emt 0:00:44]} 29. Rb5 {[%emt 0:00:54]} h5 {[%emt 0:02:39]} 30. Rd2 {[%emt 0:02:12]} Nd7 {[%emt 0:03:12]} 31. Nxd7 {[%emt 0:00:43]} Qxd7 {[%emt 0:00:11]} 32. Rxb8 {[%emt 0:00:25]} Qxa4 {[%emt 0:00:42]} 33. Rxd8+ {[%emt 0:00:01]} Kh7 {[%emt 0:00:02]} 34. Rc8 {[%emt 0:00:52]} Qb4 {[%emt 0:01:53]} 35. Rc1 {[%emt 0:00:30]} Be5 {[%emt 0:00:38]} 36. Rcd1 {[%emt 0:00:30]} Qa3 {[%emt 0:01:00]} 37. Rc2 {[%emt 0:00:43]} Qa4 {[%emt 0:00:54]} 38. Rdc1 {[%emt 0:00:14]} Qe4 {[%emt 0:01:38]} 39. Rc4 {[%emt 0:00:57]} Qxd5 {[%emt 0:00:32]} 40. a4 {[%emt 0:00:09]} Bb2 {[%emt 0:01:14]} 41. Rc5 {[%emt 0:00:25]} Qb3 {[%emt 0:01:21]} 42. R1c4 {[%emt 0:00:53]} Ba3 {[%emt 0:01:12]} 43. Rc8 {[%emt 0:00:02]} Bd6 {[%emt 0:03:37]} 44. g4 {[%emt 0:00:02]} Qd1+ {[%emt 0:01:18]} 45. Kg2 {[%emt 0:00:01]} Qd5+ {[%emt 0:00:29]} 46. f3 {[%emt 0:01:28]} Qe5 {[%emt 0:00:43]} 47. Bf2 {[%emt 0:00:17]} Qh2+ {[%emt 0:01:30]} 48. Kf1 {[%emt 0:00:01]} Qxh3+ {[%emt 0:00:54]} 49. Ke2 {[%emt 0:00:01]} Qg2 {[%emt 0:01:10]} 50. Ke3 {[%emt 0:00:54]} g5 {[%emt 0:02:03]} 51. gxh5 {[%emt 0:01:49]} Qh2 {[%emt 0:02:01]} 52. Rg4 {[%emt 0:00:30]} f5 {[%emt 0:01:26]} 53. Rg1 {[%emt 0:00:51]} Qe5+ {[%emt 0:01:41]} 54. Kd2 {[%emt 0:00:27]} Qd5+ {[%emt 0:00:16]} 55. Kc1 {[%emt 0:00:24]} Bf4+ {[%emt 0:00:41]} 56. Kc2 {[%emt 0:00:25]} Qd2+ {[%emt 0:00:26]} 57. Kb1 {[%emt 0:00:07]} Qxf2 58. Rd1 {[%emt 0:00:02]} Qxf3 {[%emt 0:01:26]} 59. Rdd8 {[%emt 0:01:02]} Qb3+ {[%emt 0:00:07]} 0-1

[Event "Commonwealth Open 2019"]
[Site "Delhi"]
[Date "2019.07.04"]
[Round "6.22"]
[White "Oatlhotse, Providence"]
[Black "Sumit, Grover"]
[Result "1/2-1/2"]
[ECO "A11"]
[WhiteElo "2244"]
[BlackElo "1875"]
[Annotator "ChessBase"]
[PlyCount "85"]
[EventDate "2019.06.30"]
[EventType "swiss"]
[EventCountry "IND"]
[SourceTitle "playchess.com"]
[Source "ChessBase"]
[SourceQuality "1"]
[TimeControl "5400+30"]

1. c4 {[%emt 0:06:46]} c6 {[%emt 0:00:08]} 2. Nf3 {[%emt 0:00:04]} d5 {[%emt 0:00:11]} 3. g3 {[%emt 0:00:04]} Bg4 {[%emt 0:00:16]} 4. Bg2 {[%emt 0:00:03]} Nf6 {[%emt 0:01:30]} 5. Qb3 {[%emt 0:00:24]} Qb6 {[%emt 0:02:00]} 6. d3 {[%emt 0:00:03]} Nbd7 {[%emt 0:00:50]} 7. Be3 {[%emt 0:00:08]} Qa6 {[%emt 0:06:05]} 8. cxd5 {[%emt 0:01:10]} Nxd5 {[%emt 0:00:35]} 9. Bd2 {[%emt 0:00:10]} e6 {[%emt 0:00:51]} 10. O-O {[%emt 0:00:26]} Be7 {[%emt 0:00:42]} 11. Re1 {[%emt 0:00:32]} O-O {[%emt 0:01:39]} 12. e4 {[%emt 0:00:28]} Nc5 {[%emt 0:01:44]} 13. Qc2 {[%emt 0:00:33]} Qxd3 {[%emt 0:00:57]} 14. Qxd3 {[%emt 0:00:21]} Nxd3 {[%emt 0:00:08]} 15. exd5 {[%emt 0:00:17]} Nxe1 {[%emt 0:02:37]} 16. Bxe1 {[%emt 0:00:21]} Bf6 {[%emt 0:02:27]} 17. Nc3 {[%emt 0:00:49]} cxd5 {[%emt 0:00:38]} 18. h3 {[%emt 0:00:23]} Bf5 {[%emt 0:01:39]} 19. g4 {[%emt 0:00:05]} Bg6 {[%emt 0:00:59]} 20. g5 {[%emt 0:04:32]} Be7 {[%emt 0:01:24]} 21. Bd2 {[%emt 0:00:15]} Rac8 {[%emt 0:00:47]} 22. Be3 {[%emt 0:03:24]} Bc5 {[%emt 0:00:59]} 23. Bxc5 {[%emt 0:05:39]} Rxc5 {[%emt 0:02:00]} 24. Ne5 {[%emt 0:00:01]} d4 {[%emt 0:01:58]} 25. Nxg6 {[%emt 0:00:05]} hxg6 {[%emt 0:04:11]} 26. Ne4 {[%emt 0:00:26]} Rc2 {[%emt 0:00:30]} 27. Rd1 {[%emt 0:01:12]} Rxb2 {[%emt 0:02:52]} 28. Rxd4 {[%emt 0:00:16]} Rxa2 {[%emt 0:00:23]} 29. Rd7 {[%emt 0:01:10]} b6 {[%emt 0:01:57]} 30. h4 {[%emt 0:00:33]} Rb8 {[%emt 0:01:38]} 31. h5 {[%emt 0:01:08]} gxh5 {[%emt 0:04:34]} 32. g6 {[%emt 0:01:38]} fxg6 {[%emt 0:00:38]} 33. Bh3 {[%emt 0:01:16]} Ra1+ {[%emt 0:02:33]} 34. Kg2 {[%emt 0:00:31]} Re8 {[%emt 0:00:37]} 35. Nd6 {[%emt 0:00:31]} Rf8 {[%emt 0:00:24]} 36. Bxe6+ {[%emt 0:00:48]} Kh7 {[%emt 0:00:08]} 37. Nf7 {[%emt 0:01:56]} Ra5 {[%emt 0:05:16]} 38. f4 {[%emt 0:00:17]} Rc5 {[%emt 0:05:20]} 39. Ng5+ {[%emt 0:02:48]} Kh6 {[%emt 0:00:24]} 40. Nf7+ {[%emt 0:00:47]} Kh7 {[%emt 0:01:09]} 41. Ng5+ {[%emt 0:04:31]} Kh6 {[%emt 0:00:33]} 42. Nf7+ {[%emt 0:00:50]} Kh7 {[%emt 0:02:54]} 43. Ng5+ {[%emt 0:00:48]} 1/2-1/2